Cogmind - Beta 9.5 *** ADVENTURER MODE // 2020.04.12 @ 01:49:44 Player: Photonicus Result: Destroyed by G-34 Mercenary with Small Laser Performance ------------- Evolutions (1) 500 Regions Visited (3) 600 Robots Destroyed (8) 40 Value Destroyed (142) 142 Prototype IDs (0) 0 Alien Tech Used (0) 0 Bonus (0) 0 TOTAL SCORE: 1282 Bonus ------- None Cogmind --------- Core Integrity 0/400 Matter 300/300 Energy 99/100 System Corruption 0% Temperature Cool (6) Movement Core (50) Location -9/Mines Parts ------- > --- POWER (1) -------- (None) > --- PROPULSION (4) --- (None) > --- UTILITY (2) ------ (None) > --- WEAPON (2) ------- (None) > --- INVENTORY (4) ---- Improved Ion Engine Rocket Launcher Peak State ------------ > --- POWER ------------ Light Nuclear Core > --- PROPULSION ------- Wheel Wheel Wheel Wheel > --- UTILITY ---------- Small Storage Unit Medium Storage Unit > --- WEAPON ----------- Medium Laser Medium Laser > --- INVENTORY -------- Improved Ion Engine Improved Ion Engine Compact Wheel Compact Wheel Compact Wheel Compact Wheel [Rating: 11] Favorites ----------- Power Light Ion Engine Engine Light Ion Engine Power Core Light Nuclear Core Propulsion Aluminum Leg Leg Aluminum Leg Wheel Wheel Utility Small Storage Unit Storage Small Storage Unit Weapon Medium Laser Energy Gun Medium Laser Build | -11 -10 -9 -9 ------- Run | Scr Mat Mat Min Slots Evolved 2 | . . 2 . Power . | . . . . Propulsion 2 | . . 2 . Utility . | . . . . Weapon . | . . . . Parts Attached 18 | 7 4 7 . Power 3 | 1 1 1 . Engine 2 | 1 . 1 . Core 1 | . 1 . . Reactor . | . . . . Propulsion 10 | 2 2 6 . Treads . | . . . . Leg 2 | 2 . . . Wheel 8 | . 2 6 . Hover . | . . . . Flight . | . . . . Utility 3 | 2 1 . . Device . | . . . . Storage 3 | 2 1 . . Processor . | . . . . Hackware . | . . . . Protection . | . . . . Artifact . | . . . . Weapon 2 | 2 . . . Energy Gun 2 | 2 . . . Energy Cannon . | . . . . Ballistic Gun . | . . . . Ballistic Cannon . | . . . . Launcher . | . . . . Special Weapon . | . . . . Impact Weapon . | . . . . Slashing Weapon . | . . . . Piercing Weapon . | . . . . Special Melee Weapon . | . . . . Unidentified Prototypes . | . . . . Parts Lost 12 | . . 12 . Power 2 | . . 2 . Propulsion 8 | . . 8 . Utility . | . . . . Weapon 2 | . . 2 . Highest Loss Streak 12 | . . 12 . Average Slot Usage (%) 79 | . 99 66 . Engine 7 | . 12 2 . Core 2 | . 1 4 . Leg 13 | . 26 . . Wheel 12 | . . 29 . Storage 23 | . 28 20 . Energy Gun 18 | . 28 9 . Naked Turns 29 | . . 9 20 Heaviest Build 21 | 15 21 21 . Greatest Support 64 | 20 20 64 3 Greatest Overweight (x) 6 | . 1 6 . Average Overweight (x) . | . . . . Largest Inventory Capacity 10 | 8 10 10 4 Average Capacity 8 | 5 8 9 4 Most Carried 10 | 8 10 7 1 Average Carried 5 | 4 8 4 1 Final Capacity 10 | 8 10 4 4 Final Carried 8 | 8 8 1 2 Class Distribution -------------------- 79% | Mutant 20% | Scavenger-Mutant Dominant Class ---------------- Mutant | -10/Materials Mutant | -9/Materials Mutant | -9/Mines Resources | -11 -10 -9 -9 ----------- Run | Scr Mat Mat Min Matter Collected 317 | 267 10 40 . Remotely . | . . . . Salvage Created 384 | 100 222 62 . Parts 21 | 4 13 4 . Haulers Intercepted 2 | . 2 . . Recyclers Shooed 1 | . 1 . . Parts Field Recycled . | . . . . Retrieved Matter . | . . . . Parts Self-Destructed . | . . . . Prevented . | . . . . Kills | -11 -10 -9 -9 ------- Run | Scr Mat Mat Min Combat Hostiles Destroyed 3 | . 2 1 . Guns 3 | . 2 1 . Classes Destroyed 5 | 1 3 1 . Worker 1 | . 1 . . Hauler 2 | . 2 . . Recycler 1 | 1 . . . Operator 1 | . . 1 . Grunt 3 | . 2 1 . Best Kill Streak 3 | 1 3 2 . Combat Bots Only 2 | . 2 1 . Max Kills in Single Turn 1 | 1 1 1 . Gunslinging . | . . . . Exploded . | . . . . Melee . | . . . . Uniques/NPCs Destroyed . | . . . . Combat | -11 -10 -9 -9 -------- Run | Scr Mat Mat Min Damage Taken 1132 | . 72 1014 46 Core 425 | . 19 360 46 Absorbed by Shields . | . . . . Core Remaining (%) 96 | 100 92 . . Volleys Fired 24 | 3 13 8 . Largest 2 | 2 2 2 . Hottest 100 | 100 100 100 . Shots Fired 46 | 6 26 14 . Gun 46 | 6 26 14 . Cannon . | . . . . Launcher . | . . . . Special . | . . . . Kinetic . | . . . . Thermal 46 | 6 26 14 . Explosive . | . . . . Electromagnetic . | . . . . Robot Hit Streak 21 | 5 19 21 . Robot Miss Streak 1 | . 1 1 . Penetration Max . | . . . . Secondary Targets 2 | . 1 1 . Max Gunslinging Chain 1 | . 1 1 . Shots Hit Robots 40 | 5 23 12 . Core Hits 17 | 2 9 6 . Critical Hits . | . . . . Critical Kills . | . . . . Critical Parts Destroyed . | . . . . Melee Attacks . | . . . . Impact . | . . . . Slashing . | . . . . Piercing . | . . . . Sneak Attacks . | . . . . Combat Hostiles . | . . . . Follow-up Attacks . | . . . . Damage Inflicted 511 | 64 290 157 . Guns 497 | 63 286 148 . Cannons . | . . . . Explosions . | . . . . Melee . | . . . . Ramming 14 | 1 4 9 . Kinetic . | . . . . Thermal 497 | 63 286 148 . Explosive . | . . . . Electromagnetic . | . . . . Impact . | . . . . Slashing . | . . . . Piercing . | . . . . Highest Corruption . | . . . . Average Corruption . | . . . . Corruption Purged . | . . . . Overload Shots . | . . . . Overflow Damage . | . . . . Projectiles . | . . . . Explosions . | . . . . Melee . | . . . . Knockbacks . | . . . . Impact . | . . . . Kinetic . | . . . . Secondary . | . . . . Self-Inflicted Damage 4 | . . 4 . Shots . | . . . . Rammed 4 | . 1 3 . Targets Rammed 6 | 1 2 3 . Kicked 2 | 1 1 . . Crushed . | . . . . Highest Temperature 285 | 99 249 285 . Average Temperature 92 | 47 87 121 . Received Heat Transfer 474 | . 54 408 12 Effects 1 | . 1 . . Energy Bleed 1 | . 1 . . Siege Activations . | . . . . Robots Corrupted . | . . . . Combat Hostiles . | . . . . Parts Fried . | . . . . Impact Corruptions . | . . . . Robots Melted 1 | . 1 . . Combat Hostiles . | . . . . Parts Melted 2 | . . 2 . Heat Transferred 1480 | 185 851 444 . Parts Sabotaged . | . . . . Parts Stolen . | . . . . Parts Stripped . | . . . . Power Chain Reactions . | . . . . Missiles Intercepted . | . . . . Alert | -11 -10 -9 -9 ------- Run | Scr Mat Mat Min Peak Influence 71 | 5 71 50 . Average Influence 21 | 1 40 14 . Maximum Alert Level . | . . . . Low Security (%) 100 | 100 100 100 100 Level 1 . | . . . . Level 2 . | . . . . Level 3 . | . . . . Level 4 . | . . . . Level 5 . | . . . . High Security . | . . . . Max Security . | . . . . Squads Dispatched 2 | . . 2 . Investigation . | . . . . Extermination . | . . . . Reinforcement 2 | . . 2 . Assault . | . . . . Garrison . | . . . . Intercept . | . . . . Construction Impeded . | . . . . Haulers Reinforced . | . . . . Stealth | -11 -10 -9 -9 --------- Run | Scr Mat Mat Min Distress Signals 3 | . 1 2 . Communications Jammed . | . . . . Distress Signals . | . . . . Times Spotted 22 | . 2 18 2 Peak Tracking Total 15 | . 2 15 2 Tactical Retreats 2 | . . 2 . Traps | -11 -10 -9 -9 ------- Run | Scr Mat Mat Min Traps Triggered . | . . . . Indirectly . | . . . . Trap Hack Attempts . | . . . . Triggered . | . . . . Disarmed . | . . . . Reprogrammed . | . . . . Reused . | . . . . Traps Extracted . | . . . . Installed . | . . . . Triggered . | . . . . Machines | -11 -10 -9 -9 ---------- Run | Scr Mat Mat Min Machines Disabled . | . . . . Max in Single Turn . | . . . . Machines Sabotaged . | . . . . Garrisons Compromised . | . . . . Overloaded Fab Kills . | . . . . Fab Network Shutdowns . | . . . . Hacking | -11 -10 -9 -9 --------- Run | Scr Mat Mat Min Machines Accessed 3 | . . 3 . Terminals 3 | . . 3 . Fabricators . | . . . . Repair Stations . | . . . . Recycling Units . | . . . . Scanalyzers . | . . . . Garrison Access . | . . . . Total Hacks 8 | . . 8 . Successful 2 | . . 2 . Failed 6 | . . 6 . Catastrophic . | . . . . Database Lockouts . | . . . . Manual 4 | . . 4 . Terminals 8 | . . 8 . Fabricators . | . . . . Repair Stations . | . . . . Recycling Units . | . . . . Scanalyzers . | . . . . Garrison Access . | . . . . Terminal Hacks 2 | . . 2 . Alert Level 1 | . . 1 . Locate Traps 1 | . . 1 . Fabricator Hacks . | . . . . Repair Station Hacks . | . . . . Recycling Unit Hacks . | . . . . Scanalyzer . | . . . . Garrison Access Hacks . | . . . . Unauthorized Hacks . | . . . . Terminals . | . . . . Fabricators . | . . . . Repair Stations . | . . . . Recycling Units . | . . . . Scanalyzers . | . . . . Garrison Access . | . . . . Data Cores Recovered . | . . . . Used . | . . . . Hacking Detections 3 | . . 3 . Full Trace Events . | . . . . Feedback Events . | . . . . Feedback Blocked . | . . . . Robot Schematics Acquired . | . . . . Robots Built . | . . . . Matter . | . . . . Time . | . . . . Total Robot Build Rating . | . . . . Part Schematics Acquired . | . . . . Parts Built . | . . . . Matter . | . . . . Time . | . . . . Total Part Build Rating . | . . . . Parts Repaired . | . . . . Time . | . . . . Parts Recycled . | . . . . Recycled Matter . | . . . . Retrieved Matter . | . . . . Retrieved Components . | . . . . Parts Scanalyzed . | . . . . Part Schematics Acquired . | . . . . Parts Damaged . | . . . . Bothacking | -11 -10 -9 -9 ------------ Run | Scr Mat Mat Min Used RIF Installer . | . . . . Robots Hacked . | . . . . Non-combat . | . . . . Combat . | . . . . Robot Hacks Applied . | . . . . Relay Couplers Released . | . . . . Robots Rewired . | . . . . Allies Hacked . | . . . . Hacks Repelled . | . . . . Allies | -11 -10 -9 -9 -------- Run | Scr Mat Mat Min Total Allies . | . . . . Largest Group . | . . . . Highest-Rated Group . | . . . . Highest-Rated Ally . | . . . . Total Orders . | . . . . Ally Attacks . | . . . . Total Damage . | . . . . Kills . | . . . . Allies Corrupted . | . . . . Allies Melted . | . . . . Intel | -11 -10 -9 -9 ------- Run | Scr Mat Mat Min Robot Analysis Total . | . . . . Derelict Logs Recovered . | . . . . Drone Launches . | . . . . Drone Recoveries . | . . . . Exploration | -11 -10 -9 -9 ------------- Run | Scr Mat Mat Min Turns Passed 410 | 86 167 137 20 Spaces Moved 292 | 48 91 114 39 Core 70 | 7 . 24 39 Treads . | . . . . Legs 127 | 41 86 . . Wheels 95 | . 5 90 . Hover . | . . . . Flight . | . . . . Fastest Speed 50 | 50 90 50 50 Average Speed 97 | 109 120 91 50 Slowest Speed 350 | 120 150 350 50 Overloaded Moves . | . . . . Propulsion Burnouts . | . . . . Robots Hopped . | . . . . Cave-ins Triggered . | . . . . Exploration Rate (%) 17 | 4 27 22 17 Regions Visited 3 Branch Regions 1 Pre-discovered Areas . | . . . . Known Exits Taken . | . . . . Unknown Exits Taken 3 | 1 1 1 . Scrap Searched . | . . . . Spaces Dug . | . . . . Terrain Destroyed . | . . . . Melee . | . . . . Projectile . | . . . . AOE . | . . . . Actions | -11 -10 -9 -9 --------- Run | Scr Mat Mat Min Total 373 | 75 125 133 40 Wait . | . . . . Move 289 | 47 90 113 39 Hop . | . . . . Pick Up 25 | 16 8 . 1 Fast Attach . | . . . . Attach 16 | 7 2 7 . Detach . | . . . . Swap 2 | . 2 . . Drop 11 | 1 8 2 . Fire 24 | 3 13 8 . Melee . | . . . . Ram 3 | . . 3 . Kick 3 | 1 2 . . Crush . | . . . . Escape Stasis . | . . . . Rewire . | . . . . Trap . | . . . . Miscellaneous . | . . . . Route ------- -11/Scrapyard -10/Materials -9/Materials -9/Mines History --------- Turn | Location | Event 7 | -11/Scrapyard | Discovered new exit (range 16) 87 | -11/Scrapyard | Entered Materials 182 | -10/Materials | Discovered new exit (range 15) 254 | -10/Materials | Entered another Materials area 254 | -9/Materials | Evolved 2 slots: Propulsion x2 371 | -9/Materials | Core integrity fell below 50% 384 | -9/Materials | Core integrity fell below 20% 386 | -9/Materials | Discovered new exit (range 9) 391 | -9/Materials | Entered Mines 401 | -9/Mines | Received a Rocket Launcher from a helpful Derelict 406 | -9/Mines | Lost 12 parts (2p8n2w) 411 | -9/Mines | Destroyed by G-34 Mercenary with Small Laser Last Messages --------------- Imp. Ion Engine destroyed. Dropped Med. Storage Unit. Dropped Sml. Storage Unit. EXIT=FOUND U-05 Engineer lays Concrete. LOCATION=UNKNOWN GOAL=ESCAPE A derelict emerges from the shadows. 7T-393(g): "Some of my friends down here think you need a mining laser when you travel the depths." 7T-393(g): "Pshh... whatever." 7T-393(g): "Everyone knows a good old rocket launcher goes a long way." 7T-393(g): "Need to get rid of a swarm? Done. Need a big hole in the wall? Done." 7T-393(g): "Need a small hole in the wall? Leave that to the mining laser wimps, I say!" 7T-393(g): "Would you like a rocket launcher? I know I would if I were you, so I'm going to lend you mine." 7T-393(g) slips back into the shadows. Acquired Rocket Launcher. Map ----- +----------------------------------------------------+ | ?????????????????????????????????????????????????? | | ?????????????????????????????????????????????????? | | ?????????????????????????????????????????????????? | | ?????????????????????????????????????????????????? | | ?????????????????????????????????????????????????? | | ?????????????????????????????????????????????????? | | ?????????????????????????????????????????????????? | | ?????????????####????????????????????????????????? | | ????????????## ##???????????###????????????????? | | ???????????## ????????## ????????????????? | | ??????????## #???????# ???????????????? | | ?????????## ##?????# ???????????????? | | ?????????# ##?### ???????????????? | | ?????????# ## ??????????????? | | ?????????# ??????????????? | | ????????## ???????????????? | | ???###### ????????????????????? | | ?? #???? ????????????????????? | | ?? ##????? ???????????????????? | | ???????# ##??????? ??????????????????? | | ???????# ## ##????????? ?????????????????? | | ???????# ???## ##?????????# ?###########????? | | ???????# ???????# ###???????# # #????? | | ????????????????# ##??????# # """ #????? | | ????????????????# ######## """ #????? | | ????????????????# @ #???# """ #????? | | ????????????????## lg ##### #????? | | ?????????????????#### ### """ #????? | | ????????????????????## ##?# """ #????? | | ?????????????????????####??######## """ #????? | | ??????????????????????????????????# #????? | | ??????????????????????????????????###########????? | | ?????????????????????????????????????????????????? | | ?????????????????????????????????????????????????? | | | | | | | | | | | | | | | | | | | | | | | | | | | | | | | | | +----------------------------------------------------+ Best States ------------- Heat Dissipation 28 Energy Generation 14 Energy Capacity 265 Matter Stores 300 Matter Capacity 300 Sight Range 16 Terrain Scan Density 10 Resistance: KI 20 Resistance: TH 20 Resistance: EX 20 Resistance: EM 20 Resistance: I 20 Resistance: S 20 Resistance: P 20 Evasion (%) 50 Offensive Hacking 10 Item Schematics ----------------- None Robot Schematics ------------------ None Fabricated ------------ Nothing Alien Tech Used ----------------- None Achievements -------------- None Challenges ------------ None Game ------ Seed SmartbombHypercooledScanner Manual? 0 Play Time 00:09:31 Cumulative 35.9 hours Start 2020.04.12 @ 01:38:16 End 2020.04.12 @ 01:49:44 Sessions 1 Manual Loads 0 Difficulty Adventurer Special Mode None Game No. 23 Rogue 0 Adventurer 23 Explorer 0 Win Type - Total 0 Types 0/0/0/0/0/0/0 Lore% 10 Gallery% 34 Achievement% 23 Wizard Run 0 Options --------- ASCII 0 Keyboard 0 Movement Mouse Keybinds 0 Fullscreen 1 Font 18/SmallcapsGlow Map View 76x50 Tactical HUD 0 Map Filters NONE Filters NONE Steam 1 RUN: 0ed7f220-b84d-4cad-8890-d84dcdc6dd5e